[Event "Cracovia Festival-A 2023"]
[Site "Krakow"]
[Date "2023.12.27"]
[Round "1.14"]
[White "Mirski, Stanislaw"]
[Black "Baum, Jonasz"]
[Result "1-0"]
[ECO "A46"]
[WhiteElo "2187"]
[BlackElo "2421"]
[Annotator "RC"]
[PlyCount "71"]
[EventDate "2023.12.24"]
[EventType "swiss"]
[EventCountry "POL"]
[SourceTitle "playchess.com"]
[Source "ChessBase"]
[SourceQuality "1"]
[TimeControl "40/5400+30:1800+30"]

1. d4 {[%emt 0:00:04]} Nf6 {[%emt 0:00:05]} 2. Nf3 {[%emt 0:00:07]} d5 {[%emt 0:00:07]} 3. g3 {[%emt 0:00:07]} g6 {[%emt 0:00:43]} 4. Bg2 {[%emt 0:00:06]} c6 {[%emt 0:00:05]} 5. O-O {[%emt 0:00:15]} Bg7 {[%emt 0:00:09]} 6. Nbd2 {[%emt 0:07:07]} O-O {[%emt 0:00:13]} 7. c4 {[%emt 0:00:05]} a5 {[%emt 0:00:48]} 8. cxd5 {[%emt 0:14:37]} cxd5 {[%emt 0:02:57]} 9. Ne5 {[%emt 0:00:07]} b6 {[%emt 0:06:15]} 10. Nb1 {[%emt 0:15:12]} Bb7 {[%emt 0:11:00]} 11. Nc3 {[%emt 0:01:01]} e6 {[%emt 0:05:03]} 12. Qb3 {[%emt 0:15:16]} Nfd7 {[%emt 0:09:54]} 13. Nxd7 {[%emt 0:06:45]} Nxd7 {[%emt 0:00:05]} 14. Rd1 {[%emt 0:00:33]} f5 {[%emt 0:08:24]} 15. Bf4 {[%emt 0:06:47]} Ba6 {[%emt 0:03:42]} 16. Nb5 {[%emt 0:02:08]} Rc8 {[%emt 0:00:59]} 17. Nd6 {[%emt 0:14:04]} Rc7 {[%emt 0:06:34]} 18. Qe3 {[%emt 0:00:30]} Nf6 {[%emt 0:04:54]} 19. Qxe6+ {[%emt 0:02:44]} Kh8 {[%emt 0:00:01]} 20. Nxf5 {[%emt 0:00:21]} gxf5 {[%emt 0:01:41]} 21. Qxb6 {[%emt 0:00:26]} Rc2 {[%emt 0:04:59]} 22. Qxa6 {[%emt 0:00:02]} Rxb2 {[%emt 0:00:06]} 23. Rab1 {[%emt 0:02:48]} Rxa2 {[%emt 0:01:00]} 24. Rb8 {[%emt 0:00:08]} Qxb8 {[%emt 0:00:58]} 25. Bxb8 {[%emt 0:00:03]} Rxb8 {[%emt 0:00:06]} 26. Rc1 {[%emt 0:00:27]} Rf8 {[%emt 0:06:54]} 27. Bh3 {[%emt 0:03:26]} Ne4 {[%emt 0:04:48]} 28. Rc8 {[%emt 0:00:30]} Nd6 {[%emt 0:00:13]} 29. Rxf8+ {[%emt 0:04:54]} Bxf8 {[%emt 0:00:00]} 30. Bxf5 {[%emt 0:01:38]} a4 {[%emt 0:01:39]} 31. Be6 {[%emt 0:00:23]} a3 {[%emt 0:06:14]} 32. Bxd5 {[%emt 0:00:02]} Ra1+ {[%emt 0:00:04]} 33. Kg2 {[%emt 0:00:05]} Kg7 {[%emt 0:00:56]} 34. e4 {[%emt 0:00:01]} a2 {[%emt 0:00:41]} 35. Bxa2 {[%emt 0:00:23]} Nxe4 {[%emt 0:00:13]} 36. Qb7+ {[%emt 0:00:08]} 1-0

[Event "Cracovia Festival-A 2023"]
[Site "Krakow"]
[Date "2023.12.27"]
[Round "1.15"]
[White "Cukrowski, Filip"]
[Black "Balint, Peter"]
[Result "0-1"]
[ECO "D78"]
[WhiteElo "2402"]
[BlackElo "2187"]
[Annotator "RC"]
[PlyCount "92"]
[EventDate "2023.12.24"]
[EventType "swiss"]
[EventCountry "POL"]
[SourceTitle "playchess.com"]
[Source "ChessBase"]
[SourceQuality "1"]
[TimeControl "40/5400+30:1800+30"]

1. d4 {[%emt 0:02:57]} Nf6 {[%emt 0:00:11]} 2. c4 {[%emt 0:00:27]} g6 {[%emt 0:00:09]} 3. Nf3 {[%emt 0:00:11]} Bg7 {[%emt 0:00:07]} 4. g3 {[%emt 0:00:43]} c6 {[%emt 0:02:51]} 5. Bg2 {[%emt 0:00:26]} d5 {[%emt 0:00:22]} 6. O-O {[%emt 0:02:11]} O-O {[%emt 0:01:18]} 7. Nc3 {[%emt 0:01:37]} dxc4 {[%emt 0:05:32]} 8. a4 {[%emt 0:05:23]} a5 {[%emt 0:08:45]} 9. e4 {[%emt 0:16:52]} Bg4 {[%emt 0:05:46]} 10. h3 {[%emt 0:14:47]} Bxf3 {[%emt 0:00:51]} 11. Bxf3 {[%emt 0:00:02]} e5 {[%emt 0:02:06]} 12. dxe5 {[%emt 0:16:23]} Nfd7 {[%emt 0:01:34]} 13. e6 {[%emt 0:00:37]} fxe6 {[%emt 0:00:11]} 14. Be2 {[%emt 0:02:10]} Ne5 {[%emt 0:03:58]} 15. Qxd8 {[%emt 0:15:05]} Rxd8 {[%emt 0:00:05]} 16. Bg5 {[%emt 0:00:07]} Rd7 {[%emt 0:00:42]} 17. f4 {[%emt 0:04:50]} Nd3 {[%emt 0:05:48]} 18. Bg4 {[%emt 0:02:17]} Nc5 {[%emt 0:04:21]} 19. f5 {[%emt 0:00:12]} exf5 {[%emt 0:10:38]} 20. exf5 {[%emt 0:00:02]} Rf7 {[%emt 0:05:33]} 21. fxg6 {[%emt 0:07:20]} Rxf1+ {[%emt 0:02:48]} 22. Rxf1 {[%emt 0:00:01]} hxg6 {[%emt 0:00:14]} 23. Rf4 {[%emt 0:00:34]} Nbd7 {[%emt 0:00:42]} 24. Rxc4 {[%emt 0:00:40]} Ne5 {[%emt 0:00:39]} 25. Rxc5 {[%emt 0:00:41]} Nxg4 {[%emt 0:00:05]} 26. Kg2 {[%emt 0:01:02]} Ne5 {[%emt 0:00:05]} 27. Ne4 {[%emt 0:01:17]} Nd3 {[%emt 0:00:10]} 28. Rc4 {[%emt 0:01:13]} Nxb2 {[%emt 0:00:25]} 29. Rc2 {[%emt 0:01:30]} Nxa4 {[%emt 0:01:22]} 30. Nd6 {[%emt 0:00:20]} Nc3 {[%emt 0:01:03]} 31. Bd2 {[%emt 0:01:49]} Nd5 {[%emt 0:01:29]} 32. Nxb7 {[%emt 0:00:26]} a4 {[%emt 0:02:48]} 33. Kf3 {[%emt 0:01:40]} a3 {[%emt 0:01:18]} 34. Ra2 {[%emt 0:00:57]} Bc3 {[%emt 0:01:41]} 35. Ke2 {[%emt 0:00:37]} Rb8 {[%emt 0:00:36]} 36. Nd6 {[%emt 0:00:22]} Rb2 {[%emt 0:00:05]} 37. Rxa3 {[%emt 0:00:10]} Rxd2+ {[%emt 0:00:05]} 38. Kf3 {[%emt 0:00:30]} Rd3+ {[%emt 0:01:27]} 39. Ke2 {[%emt 0:00:07]} Rxg3 {[%emt 0:01:10]} 40. Ra6 {[%emt 0:00:00]} Re3+ {[%emt 0:00:00]} 41. Kf1 {[%emt 0:01:19]} Re6 {[%emt 0:01:41]} 42. Rxc6 {[%emt 0:01:39]} Kh7 {[%emt 0:00:10]} 43. Ra6 {[%emt 0:01:53]} Bd4 {[%emt 0:00:11]} 44. Ra4 {[%emt 0:01:38]} Rxd6 {[%emt 0:00:06]} 45. Rxd4 {[%emt 0:00:04]} Ne3+ {[%emt 0:00:05]} 46. Ke2 {[%emt 0:00:02]} Rxd4 {[%emt 0:00:07]} 0-1

[Event "Cracovia Festival-A 2023"]
[Site "Krakow"]
[Date "2023.12.27"]
[Round "1.16"]
[White "Selbes, Tamer Tarik"]
[Black "Schwabeneder, Florian"]
[Result "0-1"]
[ECO "B07"]
[WhiteElo "2185"]
[BlackElo "2402"]
[Annotator "RC"]
[PlyCount "116"]
[EventDate "2023.12.24"]
[EventType "swiss"]
[EventCountry "POL"]
[SourceTitle "playchess.com"]
[Source "ChessBase"]
[SourceQuality "1"]
[TimeControl "40/5400+30:1800+30"]

1. e4 {[%emt 0:00:15]} d6 {[%emt 0:00:51]} 2. d4 {[%emt 0:00:24]} Nf6 {[%emt 0:00:08]} 3. Nc3 {[%emt 0:00:05]} g6 {[%emt 0:00:30]} 4. g3 {[%emt 0:00:45]} Bg7 {[%emt 0:00:16]} 5. Bg2 {[%emt 0:00:07]} O-O {[%emt 0:00:19]} 6. Nge2 {[%emt 0:00:05]} Nbd7 {[%emt 0:02:06]} 7. O-O {[%emt 0:00:25]} c5 {[%emt 0:00:40]} 8. d5 {[%emt 0:03:23]} a6 {[%emt 0:05:46]} 9. a4 {[%emt 0:00:09]} b6 {[%emt 0:00:27]} 10. h3 {[%emt 0:00:43]} Rb8 {[%emt 0:00:11]} 11. g4 {[%emt 0:00:44]} b5 {[%emt 0:05:52]} 12. axb5 {[%emt 0:00:05]} axb5 {[%emt 0:00:07]} 13. Ng3 {[%emt 0:00:43]} Ne8 {[%emt 0:05:04]} 14. f4 {[%emt 0:04:12]} Nc7 {[%emt 0:03:36]} 15. e5 {[%emt 0:02:07]} Nb6 {[%emt 0:12:14]} 16. exd6 {[%emt 0:10:48]} exd6 {[%emt 0:00:08]} 17. f5 {[%emt 0:00:08]} b4 {[%emt 0:20:19]} 18. Nce4 {[%emt 0:01:50]} Bd4+ {[%emt 0:01:28]} 19. Kh1 {[%emt 0:01:07]} Ncxd5 {[%emt 0:02:39]} 20. Qd3 {[%emt 0:05:42]} Bb7 {[%emt 0:13:14]} 21. Bh6 {[%emt 0:08:29]} Re8 {[%emt 0:03:28]} 22. c3 {[%emt 0:15:50]} bxc3 {[%emt 0:02:37]} 23. bxc3 {[%emt 0:00:02]} Nxc3 {[%emt 0:08:45]} 24. fxg6 {[%emt 0:00:43]} hxg6 {[%emt 0:02:14]} 25. Bg5 {[%emt 0:02:17]} Rxe4 {[%emt 0:07:43]} 26. Bxd8 {[%emt 0:00:08]} Re3 {[%emt 0:00:06]} 27. Qxe3 {[%emt 0:05:25]} Bxe3 {[%emt 0:01:44]} 28. Bc7 {[%emt 0:00:40]} Bxg2+ {[%emt 0:00:22]} 29. Kxg2 {[%emt 0:00:03]} Rb7 {[%emt 0:00:07]} 30. Bxd6 {[%emt 0:00:34]} Nc4 {[%emt 0:01:09]} 31. Ra8+ {[%emt 0:00:50]} Kh7 {[%emt 0:00:44]} 32. Bf4 {[%emt 0:02:47]} Nd5 {[%emt 0:00:20]} 33. Bb8 {[%emt 0:04:16]} Bd4 {[%emt 0:00:51]} 34. Kh1 {[%emt 0:01:23]} Ncb6 {[%emt 0:00:34]} 35. Rb1 {[%emt 0:01:19]} Nb4 {[%emt 0:00:08]} 36. Ra7 {[%emt 0:02:12]} Rxb8 {[%emt 0:00:02]} 37. Rxf7+ {[%emt 0:00:27]} Kg8 {[%emt 0:00:08]} 38. Re7 {[%emt 0:00:18]} N6d5 {[%emt 0:01:09]} 39. Rd7 {[%emt 0:00:20]} Re8 {[%emt 0:00:50]} 40. h4 {[%emt 0:00:00]} Re3 {[%emt 0:00:00]} 41. Kg2 {[%emt 0:03:07]} Nf4+ {[%emt 0:08:57]} 42. Kh2 {[%emt 0:00:07]} Be5 {[%emt 0:00:21]} 43. Rf1 {[%emt 0:00:43]} Ne6 {[%emt 0:00:59]} 44. Rg1 {[%emt 0:00:42]} c4 {[%emt 0:02:01]} 45. h5 {[%emt 0:00:24]} g5 {[%emt 0:00:43]} 46. Re7 {[%emt 0:02:33]} Nd5 {[%emt 0:00:38]} 47. Ra7 {[%emt 0:00:30]} Nf6 {[%emt 0:01:11]} 48. Ra8+ {[%emt 0:00:32]} Kf7 {[%emt 0:00:09]} 49. Ra7+ {[%emt 0:00:14]} Nc7 {[%emt 0:00:10]} 50. Ra4 {[%emt 0:06:22]} c3 {[%emt 0:02:32]} 51. Rc4 {[%emt 0:01:02]} Ne4 {[%emt 0:01:33]} 52. Rf1+ {[%emt 0:01:13]} Ke6 {[%emt 0:00:20]} 53. Rf5 {[%emt 0:00:26]} Bxg3+ {[%emt 0:00:37]} 54. Kg2 {[%emt 0:00:03]} Bd6 {[%emt 0:03:40]} 55. h6 {[%emt 0:00:52]} Rg3+ {[%emt 0:00:31]} 56. Kh1 {[%emt 0:01:47]} Rxg4 {[%emt 0:02:20]} 57. h7 {[%emt 0:00:41]} Kxf5 {[%emt 0:00:17]} 58. Rc5+ {[%emt 0:01:50]} Bxc5 {[%emt 0:00:56]} 0-1

[Event "Cracovia Festival-A 2023"]
[Site "Krakow"]
[Date "2023.12.27"]
[Round "1.17"]
[White "Dzida, Kamil"]
[Black "Zdybel, Przemyslaw"]
[Result "1-0"]
[ECO "C03"]
[WhiteElo "2396"]
[BlackElo "2180"]
[Annotator "ChessBase"]
[PlyCount "55"]
[EventDate "2023.12.24"]
[EventType "swiss"]
[EventCountry "POL"]
[SourceTitle "playchess.com"]
[Source "ChessBase"]
[SourceQuality "1"]
[TimeControl "40/5400+30:1800+30"]

1. e4 {[%emt 0:00:03]} e6 {[%emt 0:00:10]} 2. d4 {[%emt 0:00:10]} d5 {[%emt 0:00:06]} 3. Nd2 {[%emt 0:00:08]} Nd7 {[%emt 0:06:28]} 4. Ngf3 {[%emt 0:02:41]} dxe4 {[%emt 0:01:58]} 5. Nxe4 {[%emt 0:00:06]} Ngf6 {[%emt 0:00:03]} 6. Nxf6+ {[%emt 0:00:11]} Nxf6 {[%emt 0:00:34]} 7. Be3 {[%emt 0:00:57]} Bd6 {[%emt 0:04:07]} 8. Bd3 {[%emt 0:02:13]} b6 {[%emt 0:01:38]} 9. Ne5 {[%emt 0:07:52]} Bxe5 {[%emt 0:04:28]} 10. dxe5 {[%emt 0:00:21]} Nd5 {[%emt 0:00:11]} 11. Qg4 {[%emt 0:03:22]} Kf8 {[%emt 0:07:27]} 12. Bg5 {[%emt 0:14:07]} Qe8 {[%emt 0:05:37]} 13. c4 {[%emt 0:01:17]} Nb4 {[%emt 0:07:00]} 14. Be4 {[%emt 0:00:11]} Rb8 {[%emt 0:01:54]} 15. Rd1 {[%emt 0:07:21]} Bd7 {[%emt 0:01:33]} 16. O-O {[%emt 0:04:01]} h6 {[%emt 0:05:55]} 17. Bf6 {[%emt 0:16:45]} gxf6 {[%emt 0:00:11]} 18. exf6 {[%emt 0:00:09]} Rg8 {[%emt 0:00:07]} 19. Qf4 {[%emt 0:00:20]} Qc8 {[%emt 0:03:54]} 20. Qxh6+ {[%emt 0:03:59]} Ke8 {[%emt 0:00:10]} 21. Rfe1 {[%emt 0:00:37]} Bc6 {[%emt 0:08:54]} 22. Qh7 {[%emt 0:02:22]} Kf8 {[%emt 0:03:29]} 23. a3 {[%emt 0:03:14]} Bxe4 {[%emt 0:01:18]} 24. Rxe4 {[%emt 0:00:20]} Nc6 {[%emt 0:02:47]} 25. Qh6+ {[%emt 0:02:14]} Ke8 {[%emt 0:00:03]} 26. Rg4 {[%emt 0:00:39]} Rf8 {[%emt 0:00:34]} 27. Rh4 {[%emt 0:00:46]} Rg8 {[%emt 0:01:14]} 28. Qg7 {[%emt 0:00:36]} 1-0

[Event "Cracovia Festival-A 2023"]
[Site "Krakow"]
[Date "2023.12.27"]
[Round "1.18"]
[White "Leskiewicz, Ignacy"]
[Black "Bogdanov, Egor"]
[Result "0-1"]
[ECO "A05"]
[WhiteElo "2177"]
[BlackElo "2394"]
[Annotator "RC"]
[PlyCount "84"]
[EventDate "2023.12.24"]
[EventType "swiss"]
[EventCountry "POL"]
[SourceTitle "playchess.com"]
[Source "ChessBase"]
[SourceQuality "1"]
[TimeControl "40/5400+30:1800+30"]

1. Nf3 {[%emt 0:00:08]} Nf6 {[%emt 0:00:10]} 2. c4 {[%emt 0:00:26]} g6 {[%emt 0:00:12]} 3. b3 {[%emt 0:00:41]} Bg7 {[%emt 0:00:04]} 4. Bb2 {[%emt 0:00:05]} c5 {[%emt 0:00:27]} 5. g3 {[%emt 0:02:44]} Nc6 {[%emt 0:00:08]} 6. Bg2 {[%emt 0:00:10]} d6 {[%emt 0:00:16]} 7. O-O {[%emt 0:04:36]} O-O {[%emt 0:00:05]} 8. d4 {[%emt 0:06:18]} cxd4 {[%emt 0:00:05]} 9. Nxd4 {[%emt 0:00:13]} Bd7 {[%emt 0:00:07]} 10. e3 {[%emt 0:03:17]} Qc8 {[%emt 0:08:09]} 11. Nc3 {[%emt 0:08:18]} Bh3 {[%emt 0:03:34]} 12. Nxc6 {[%emt 0:00:10]} bxc6 {[%emt 0:00:10]} 13. Qf3 {[%emt 0:01:41]} Bxg2 {[%emt 0:04:27]} 14. Kxg2 {[%emt 0:00:19]} Nd7 {[%emt 0:00:53]} 15. Rac1 {[%emt 0:12:46]} Qb7 {[%emt 0:03:05]} 16. Qe2 {[%emt 0:07:03]} Nc5 {[%emt 0:01:18]} 17. h4 {[%emt 0:05:44]} a5 {[%emt 0:05:03]} 18. Ba3 {[%emt 0:07:07]} Nd7 {[%emt 0:07:07]} 19. c5 {[%emt 0:02:53]} d5 {[%emt 0:08:23]} 20. Nxd5 {[%emt 0:00:24]} cxd5 {[%emt 0:00:02]} 21. c6 {[%emt 0:00:01]} Qc7 {[%emt 0:00:23]} 22. cxd7 {[%emt 0:01:01]} Qxd7 {[%emt 0:00:01]} 23. Rc5 {[%emt 0:09:34]} Rfc8 {[%emt 0:04:13]} 24. Rfc1 {[%emt 0:04:01]} e6 {[%emt 0:09:05]} 25. Rxc8+ {[%emt 0:07:38]} Rxc8 {[%emt 0:00:03]} 26. Rxc8+ {[%emt 0:00:26]} Qxc8 {[%emt 0:00:02]} 27. Qb5 {[%emt 0:00:58]} h5 {[%emt 0:05:12]} 28. Bd6 {[%emt 0:04:18]} Kh7 {[%emt 0:01:04]} 29. Qc5 {[%emt 0:05:31]} Qa8 {[%emt 0:06:12]} 30. Kg1 {[%emt 0:02:14]} d4 {[%emt 0:15:16]} 31. Be5 {[%emt 0:00:01]} Bxe5 {[%emt 0:07:14]} 32. Qxe5 {[%emt 0:00:01]} d3 {[%emt 0:00:01]} 33. Qd4 {[%emt 0:01:36]} Qa6 {[%emt 0:02:26]} 34. e4 {[%emt 0:00:54]} Qb5 {[%emt 0:03:01]} 35. Kg2 {[%emt 0:02:53]} e5 {[%emt 0:00:21]} 36. Qd6 {[%emt 0:00:31]} a4 {[%emt 0:00:45]} 37. bxa4 {[%emt 0:01:20]} Qc4 {[%emt 0:00:01]} 38. a5 {[%emt 0:00:54]} Qxe4+ {[%emt 0:00:12]} 39. Kh2 {[%emt 0:00:25]} Qf3 {[%emt 0:01:11]} 40. a6 {[%emt 0:00:00]} Qxf2+ {[%emt 0:00:00]} 41. Kh3 {[%emt 0:03:17]} e4 {[%emt 0:04:18]} 42. a4 {[%emt 0:03:14]} Qg1 {[%emt 0:00:46]} 0-1

[Event "Cracovia Festival-A 2023"]
[Site "Krakow"]
[Date "2023.12.27"]
[Round "1.19"]
[White "Niedbala, Bartlomiej"]
[Black "Podolskyi, Mykhailo"]
[Result "0-1"]
[ECO "B40"]
[WhiteElo "2393"]
[BlackElo "2177"]
[Annotator "RC"]
[PlyCount "102"]
[EventDate "2023.12.24"]
[EventType "swiss"]
[EventCountry "POL"]
[SourceTitle "playchess.com"]
[Source "ChessBase"]
[SourceQuality "1"]
[TimeControl "40/5400+30:1800+30"]

1. e4 {[%emt 0:06:27]} c5 {[%emt 0:01:03]} 2. Nf3 {[%emt 0:01:13]} e6 {[%emt 0:00:50]} 3. d4 {[%emt 0:03:07]} cxd4 {[%emt 0:00:16]} 4. Nxd4 {[%emt 0:00:03]} Nf6 {[%emt 0:02:02]} 5. Nc3 {[%emt 0:00:26]} Nc6 {[%emt 0:00:12]} 6. Nxc6 {[%emt 0:01:24]} bxc6 {[%emt 0:01:36]} 7. e5 {[%emt 0:00:09]} Nd5 {[%emt 0:00:09]} 8. Ne4 {[%emt 0:00:05]} Qc7 {[%emt 0:00:18]} 9. f4 {[%emt 0:00:12]} Qb6 {[%emt 0:00:09]} 10. c4 {[%emt 0:01:05]} Bb4+ {[%emt 0:00:42]} 11. Ke2 {[%emt 0:00:17]} Ba6 {[%emt 0:00:54]} 12. Kf3 {[%emt 0:01:31]} f5 {[%emt 0:00:30]} 13. exf6 {[%emt 0:01:01]} Nxf6 {[%emt 0:00:18]} 14. c5 {[%emt 0:00:52]} Qa5 {[%emt 0:11:45]} 15. Nd6+ {[%emt 0:12:43]} Ke7 {[%emt 0:09:17]} 16. Bxa6 {[%emt 0:01:00]} Qxa6 {[%emt 0:31:18]} 17. Be3 {[%emt 0:00:24]} Raf8 {[%emt 0:06:16]} 18. Qd4 {[%emt 0:26:18]} Ba5 {[%emt 0:02:53]} 19. Rad1 {[%emt 0:08:31]} Bc7 {[%emt 0:03:47]} 20. a3 {[%emt 0:03:00]} Rhg8 {[%emt 0:02:13]} 21. f5 {[%emt 0:10:47]} g5 {[%emt 0:11:48]} 22. g4 {[%emt 0:05:50]} Nd5 23. h4 {[%emt 0:02:12]} gxh4 {[%emt 0:11:45]} 24. Rxh4 {[%emt 0:00:02]} Bxd6 {[%emt 0:00:41]} 25. cxd6+ {[%emt 0:02:06]} Kd8 {[%emt 0:00:45]} 26. Qxa7 {[%emt 0:09:39]} Qxa7 {[%emt 0:00:19]} 27. Bxa7 {[%emt 0:00:02]} exf5 {[%emt 0:00:03]} 28. g5 {[%emt 0:00:52]} Rxg5 {[%emt 0:01:31]} 29. Rxh7 {[%emt 0:00:42]} Rg6 {[%emt 0:01:04]} 30. Re1 {[%emt 0:01:41]} Nf6 {[%emt 0:00:23]} 31. Rhe7 {[%emt 0:01:45]} Ne4 {[%emt 0:00:24]} 32. Bb6+ {[%emt 0:00:30]} Kc8 {[%emt 0:00:07]} 33. Bc7 {[%emt 0:00:33]} Nxd6 {[%emt 0:01:00]} 34. Ba5 {[%emt 0:00:09]} Ne4 {[%emt 0:00:40]} 35. Rd1 {[%emt 0:00:01]} Rd6 {[%emt 0:00:24]} 36. Rh1 {[%emt 0:01:10]} Rd5 {[%emt 0:00:30]} 37. Bb4 {[%emt 0:00:19]} Rg8 {[%emt 0:00:10]} 38. Be1 {[%emt 0:00:48]} Rd1 {[%emt 0:00:54]} 39. Re5 {[%emt 0:00:01]} Rf8 {[%emt 0:00:26]} 40. Kf4 {[%emt 0:00:00]} Nf2 {[%emt 0:00:00]} 41. Bxf2 {[%emt 0:05:36]} Rxh1 {[%emt 0:00:38]} 42. Ra5 {[%emt 0:00:03]} Rf7 {[%emt 0:03:02]} 43. b4 {[%emt 0:03:32]} Rf1 {[%emt 0:01:26]} 44. Kf3 {[%emt 0:00:27]} Rc1 {[%emt 0:00:54]} 45. Be3 {[%emt 0:03:19]} Rc3 {[%emt 0:00:36]} 46. Kf4 {[%emt 0:00:22]} Rc4+ {[%emt 0:00:15]} 47. Kf3 {[%emt 0:00:20]} f4 {[%emt 0:00:14]} 48. Bc5 {[%emt 0:02:52]} Rc3+ {[%emt 0:00:50]} 49. Kf2 {[%emt 0:00:26]} f3 {[%emt 0:00:10]} 50. Bd6 {[%emt 0:00:24]} Rc2+ {[%emt 0:00:28]} 51. Ke3 {[%emt 0:00:15]} f2 {[%emt 0:00:56]} 0-1

[Event "Cracovia Festival-A 2023"]
[Site "Krakow"]
[Date "2023.12.27"]
[Round "1.20"]
[White "Szczurek, Krzysztof"]
[Black "Sieciechowicz, Marcin"]
[Result "0-1"]
[ECO "D14"]
[WhiteElo "2175"]
[BlackElo "2391"]
[Annotator "RC"]
[PlyCount "134"]
[EventDate "2023.12.24"]
[EventType "swiss"]
[EventCountry "POL"]
[SourceTitle "playchess.com"]
[Source "ChessBase"]
[SourceQuality "1"]
[TimeControl "40/5400+30:1800+30"]

1. d4 {[%emt 0:00:03]} Nf6 {[%emt 0:00:14]} 2. Nf3 {[%emt 0:00:19]} d5 {[%emt 0:00:24]} 3. c4 {[%emt 0:00:30]} c6 {[%emt 0:00:13]} 4. cxd5 {[%emt 0:00:39]} cxd5 {[%emt 0:00:28]} 5. Nc3 {[%emt 0:00:07]} Nc6 {[%emt 0:00:08]} 6. Bf4 {[%emt 0:00:32]} Bf5 {[%emt 0:00:18]} 7. e3 {[%emt 0:00:14]} e6 {[%emt 0:00:09]} 8. Bd3 {[%emt 0:01:55]} Bxd3 {[%emt 0:01:05]} 9. Qxd3 {[%emt 0:00:07]} Be7 {[%emt 0:00:09]} 10. h3 {[%emt 0:01:07]} O-O {[%emt 0:02:14]} 11. O-O {[%emt 0:00:07]} Rc8 {[%emt 0:01:47]} 12. Rfc1 {[%emt 0:01:41]} a6 {[%emt 0:00:34]} 13. Nd2 {[%emt 0:04:02]} Na5 {[%emt 0:03:03]} 14. Ne2 {[%emt 0:04:53]} Qd7 {[%emt 0:04:15]} 15. Be5 {[%emt 0:05:07]} b5 {[%emt 0:04:03]} 16. Bxf6 {[%emt 0:10:59]} Bxf6 {[%emt 0:04:24]} 17. a4 {[%emt 0:00:19]} Nc4 {[%emt 0:04:51]} 18. b3 {[%emt 0:01:43]} Nd6 {[%emt 0:03:51]} 19. axb5 {[%emt 0:02:32]} axb5 {[%emt 0:00:11]} 20. Rxc8 {[%emt 0:11:05]} Rxc8 {[%emt 0:00:36]} 21. Rc1 {[%emt 0:00:05]} Ra8 {[%emt 0:03:28]} 22. Qc3 {[%emt 0:06:41]} Be7 {[%emt 0:00:37]} 23. Qd3 {[%emt 0:10:33]} h6 {[%emt 0:04:56]} 24. Nf3 {[%emt 0:01:04]} b4 {[%emt 0:05:45]} 25. Ne5 {[%emt 0:02:57]} Qb7 {[%emt 0:03:34]} 26. Nf4 {[%emt 0:10:53]} Bf8 {[%emt 0:06:44]} 27. Ne2 {[%emt 0:07:15]} Qb5 {[%emt 0:05:43]} 28. Rc5 {[%emt 0:10:41]} Ra1+ {[%emt 0:08:35]} 29. Rc1 {[%emt 0:01:39]} Ra8 {[%emt 0:05:41]} 30. Rc5 {[%emt 0:00:16]} Qxd3 {[%emt 0:00:50]} 31. Nxd3 {[%emt 0:00:06]} Ne4 {[%emt 0:00:59]} 32. Rc2 {[%emt 0:01:22]} Ra1+ {[%emt 0:02:02]} 33. Ndc1 {[%emt 0:00:50]} Rb1 {[%emt 0:05:11]} 34. g3 {[%emt 0:00:47]} Bd6 {[%emt 0:01:33]} 35. Kg2 {[%emt 0:00:36]} g5 {[%emt 0:00:49]} 36. Rc6 {[%emt 0:02:47]} Rb2 {[%emt 0:02:07]} 37. Ra6 {[%emt 0:00:33]} Kg7 {[%emt 0:03:42]} 38. Ra2 {[%emt 0:00:06]} Rb1 {[%emt 0:00:06]} 39. Rc2 {[%emt 0:00:14]} h5 {[%emt 0:00:27]} 40. Rc6 {[%emt 0:00:00]} Rb2 {[%emt 0:00:00]} 41. Ra6 {[%emt 0:07:18]} g4 {[%emt 0:07:18]} 42. h4 {[%emt 0:00:39]} Rd2 {[%emt 0:05:26]} 43. Ra2 {[%emt 0:02:52]} Rd1 {[%emt 0:00:08]} 44. Rc2 {[%emt 0:00:14]} Kf6 {[%emt 0:02:08]} 45. Na2 {[%emt 0:05:15]} Rb1 {[%emt 0:04:25]} 46. Nec1 {[%emt 0:01:41]} Ke7 {[%emt 0:02:09]} 47. Kf1 {[%emt 0:02:01]} Kd7 {[%emt 0:04:24]} 48. Ke2 {[%emt 0:01:36]} f6 {[%emt 0:01:02]} 49. Kd3 {[%emt 0:04:31]} e5 {[%emt 0:01:50]} 50. Re2 {[%emt 0:02:26]} Ra1 {[%emt 0:01:42]} 51. Kc2 {[%emt 0:03:26]} Nc3 {[%emt 0:00:34]} 52. Nxc3 {[%emt 0:02:41]} bxc3 {[%emt 0:00:01]} 53. Nd3 {[%emt 0:00:42]} Ra2+ {[%emt 0:00:58]} 54. Kd1 {[%emt 0:00:06]} Ra1+ {[%emt 0:00:09]} 55. Kc2 {[%emt 0:00:04]} e4 {[%emt 0:01:32]} 56. Nc5+ {[%emt 0:00:56]} Bxc5 {[%emt 0:00:50]} 57. dxc5 {[%emt 0:00:07]} Ra2+ {[%emt 0:00:07]} 58. Kd1 {[%emt 0:00:05]} Ra5 {[%emt 0:04:42]} 59. b4 {[%emt 0:03:24]} Ra1+ {[%emt 0:00:10]} 60. Kc2 {[%emt 0:00:07]} Ra2+ {[%emt 0:00:04]} 61. Kd1 {[%emt 0:00:08]} Ra3 {[%emt 0:00:22]} 62. b5 {[%emt 0:00:30]} Rb3 {[%emt 0:02:45]} 63. Rc2 {[%emt 0:00:31]} f5 {[%emt 0:02:24]} 64. Ke2 {[%emt 0:00:26]} f4 {[%emt 0:02:06]} 65. gxf4 {[%emt 0:00:13]} d4 {[%emt 0:00:56]} 66. c6+ {[%emt 0:03:24]} Kc7 {[%emt 0:01:02]} 67. Kf1 {[%emt 0:00:33]} d3 {[%emt 0:00:36]} 0-1